fUST/lending_fUST_20240513
["ID","MTS","AMOUNT","RATE_DAILY","PERIOD"]
[326872284,1715529750595,19221.69193316,0.00020913,2]
[326872285,1715529751074,154.9063322,0.00020913,2]
[326872286,1715529819898,154.73694719,0.00020913,2]
[326872287,1715529820873,154.7215013,0.00020913,2]
[326872288,1715529835268,154.8903125,0.00020913,2]
[326872289,1715529838856,154.7215013,0.00020913,2]
[326872290,1715529839845,154.73694719,0.00020913,2]
[326872291,1715529851244,156.07783812,0.00020913,2]
[326872292,1715529855174,301.42332274,0.00020913,2]
[326872293,1715529857454,584.66678309,0.00020913,2]
[326872294,1715529865433,315.66838361,0.00020913,2]
[326872295,1715529869710,1624.95494282,0.00020913,2]
[326872296,1715529879263,236.28343154,0.00020913,2]
[326872297,1715529885842,222.38123937,0.00020913,2]
[326872298,1715529888694,10000.0,0.00023,10]
[326872299,1715529902794,8396.4,0.00023,2]
[326872300,1715529946179,-184.767499,0.00023562,2]
[326872301,1715529946199,-61.70453248,0.00027667,2]
[326872302,1715529946859,834.50840127,0.00022738,2]
[326872303,1715529972317,364.39759139,0.00023,2]
[326872304,1715529975268,522.46559365,9.999e-05,2]
[326872305,1715529980520,2086.67556332,0.00023,2]
[326872306,1715529982935,281.09538641,0.00023,2]
[326872307,1715529990300,363.54386345,0.00023,2]
[326872308,1715529998577,19226.42215119,0.00023,2]
[326872309,1715530004450,2090.39705573,0.00023,2]
[326872310,1715530016570,19226.42215119,0.00023,2]
[326872311,1715530032578,5621.42634553,0.00023,2]
[326872313,1715530152114,-4491.3690779,0.00025366,2]
[326872314,1715530152134,-8428.4640702,0.00025366,2]
[326872315,1715530152156,-24880.0,0.00027516,2]
[326872316,1715530152175,-5896.33122305,0.0003,2]
[326872317,1715530152196,-561.87924724,0.00033882,2]
[326872318,1715530152217,-500.0,0.00035259,7]
[326872319,1715530152238,-500.0,0.00035259,7]
[326872320,1715530152260,-500.0,0.00035259,7]
[326872321,1715530152282,-500.0,0.00035259,7]
[326872322,1715530152305,-500.0,0.00035259,7]
[326872323,1715530152326,-500.0,0.00035259,7]
[326872324,1715530152347,-500.0,0.00035259,7]
[326872325,1715530152368,-500.0,0.00035259,7]
[326872326,1715530152390,-500.0,0.00035259,7]
[326872327,1715530152410,-500.0,0.00035259,7]
[326872328,1715530152431,-500.0,0.00035259,7]
[326872329,1715530152451,-500.0,0.00035259,7]
[326872330,1715530152471,-500.0,0.00035259,7]
[326872331,1715530152490,-500.0,0.00035259,7]
[326872332,1715530152510,-500.0,0.00035259,7]
[326872333,1715530152530,-500.0,0.00035259,7]
[326872334,1715530152549,-500.0,0.00035259,7]
[326872335,1715530152569,-500.0,0.00035259,7]
[326872336,1715530152589,-500.0,0.00035259,7]
[326872337,1715530152609,-500.0,0.00035259,7]
[326872338,1715530152629,-500.0,0.00035259,7]
[326872339,1715530152649,-646.7356021,0.00035259,7]
[326872340,1715530152668,-500.0,0.00035259,7]
[326872341,1715530152688,-500.0,0.00035259,7]
[326872342,1715530152707,-500.0,0.00035259,7]
[326872343,1715530171160,164.132885,0.00023562,2]
[326872344,1715530200318,10689.38493145,0.00034,5]
[326872345,1715530207122,643.15853843,0.00035795,2]
[326872372,1715530232191,-4282.71283722,0.0004,4]
[326872374,1715530232201,-154.7215013,0.000459,4]
[326872375,1715530232210,-231.79893608,0.00046223,3]
[326872376,1715530232220,-152.04829865,0.00046577,2]
[326872377,1715530232229,-767.36,0.0004659,30]
[326872378,1715530232239,-2000.0,0.000466,30]
[326872379,1715530232248,-2000.0,0.000466,30]
[326872380,1715530232258,-53435.16806541,0.0004669,2]
[326872381,1715530232269,-569.0,0.0004669,2]
[326872382,1715530232280,-754.22674004,0.0004669,2]
[326872383,1715530232291,-269.24912565,0.0004669,2]
[326872384,1715530232304,-2634.30417225,0.0004669,2]
[326872385,1715530232313,-331.40858203,0.0004669,2]
[326872386,1715530232326,-89314.75287657,0.000467,30]
[326872387,1715530232480,853.49439027,0.000319,2]
[326872388,1715530232705,853.49439027,0.000369,2]
[326872729,1715530242081,-853.49439027,0.000419,2]
[326872730,1715530242091,-208.42845868,0.00046493,2]
[326872731,1715530242100,-500.0,0.00046689,31]
[326872732,1715530242110,-500.0,0.00046689,31]
[326872733,1715530242132,-349.63728912,0.00046689,31]
[326872734,1715530242153,-76362.01910892,0.000467,30]
[326872735,1715530242174,-757.06655071,0.000467,30]
[326872803,1715530243386,-27.38578127,0.000467,30]
[326873085,1715530269095,155.08065082,0.00036542,4]
[326873086,1715530287465,301.026073,0.00035313,2]
[326873087,1715530311887,894.8510247,0.00020913,2]
[326873088,1715530340302,701.96912775,0.00036732,4]
[326873089,1715530343995,260.5,0.00022738,2]
[326873090,1715530423694,418.8888535,9.999e-05,2]
[326873091,1715530423719,623.37511546,9.999e-05,2]
[326873097,1715530826223,1624.95494282,0.00022738,2]
[326873104,1715530873804,1579.70306251,9.999e-05,2]
[326873105,1715530888519,284.68255756,9.999e-05,2]
[326873107,1715530912156,194.23254452,0.00020913,2]
[326873108,1715530913514,834.50840127,0.00022738,2]
[326873109,1715530917375,904.83466521,0.00020913,2]
[326873110,1715530918889,1349.05891759,9.999e-05,2]
[326873111,1715530934433,410.02105366,9.999e-05,2]
[326873112,1715530941125,484.2157883,0.00020913,2]
[326873113,1715530941488,1093.74406473,9.999e-05,2]
[326873115,1715530956371,2636.86271003,9.999e-05,2]
[326873116,1715530968077,315.66838361,0.00020913,2]
[326873117,1715530975459,708.68781589,9.999e-05,2]
[326873118,1715530979907,236.28343154,0.00020913,2]
[326873119,1715531003595,154.7215013,0.00020913,2]
[326873120,1715531025119,527.88053844,9.999e-05,2]
[326873122,1715531073561,292.37560477,9.999e-05,2]
[326873123,1715531091588,260.5,0.00022738,2]
[326873125,1715531155174,-169.362255,0.00023562,2]
[326873126,1715531155194,-186.94483115,0.00027,2]
[326873127,1715531155213,-330.82104691,0.0003,2]
[326873130,1715531234505,3058.73651821,0.00022738,2]
[326873131,1715531235097,-377.05841,0.0003,2]
[326873132,1715531235124,-6225.13904272,0.0003,2]
[326873133,1715531235146,-10640.91795133,0.00034,5]
[326873138,1715531353097,-990.43121424,0.0003366,2]
[326873139,1715531353117,-48.46698012,0.00034,5]
[326873140,1715531353138,-250.0,0.00035272,2]
[326873141,1715531353158,-500.0,0.00036,2]
[326873142,1715531353178,-168.5402683,0.00036599,4]
[326873143,1715531353197,-299.996,0.00037824,2]
[326873200,1715531432450,-309.74071762,0.0004,120]
[326873201,1715531432460,-192.61744948,0.00041899,4]
[326873202,1715531432470,-449.59427246,0.000419,39]
[326873203,1715531432479,-1782.85776527,0.000431,120]
[326873204,1715531432491,-54723.77520915,0.000431,120]
[326873205,1715531432503,-5439.240196,0.000431,120]
[326873206,1715531432515,-2526.62599706,0.000431,120]
[326873236,1715531438607,-150.0,0.00041,2]
[326873238,1715531438617,-128.42152,0.00043099,31]
[326873431,1715531440716,-8371.92254107,0.00043093,3]
[326873433,1715531440729,-9356.32745893,0.00043093,3]
[326873435,1715531440741,-139.57413267,0.00043099,31]
[326873437,1715531440751,-500.0,0.00043099,31]
[326873439,1715531440760,-500.0,0.00043099,31]
[326873441,1715531440770,-500.0,0.00043099,31]
[326873443,1715531440779,-500.0,0.00043099,31]
[326873445,1715531440789,-500.0,0.00043099,31]
[326873447,1715531440798,-500.0,0.00043099,31]
[326873449,1715531440808,-500.0,0.00043099,31]
[326873451,1715531440818,-500.0,0.00043099,31]
[326873453,1715531440827,-500.0,0.00043099,31]
[326873455,1715531440837,-500.0,0.00043099,31]
[326873457,1715531440848,-524.9717699,0.00043099,31]
[326873458,1715531440857,-500.0,0.00043099,31]
[326873461,1715531440867,-500.0,0.00043099,31]
[326873462,1715531440876,-160.80890237,0.00043099,31]
[326873469,1715531440930,-339.19109763,0.00043099,31]
[326873471,1715531440939,-36.81380237,0.00043099,31]
[326873535,1715531441958,-463.18619763,0.00043099,31]
[326873536,1715531441967,-309.99120726,0.00043099,31]
[326873537,1715531441976,-500.0,0.00043099,31]
[326873538,1715531441985,-500.0,0.00043099,31]
[326873539,1715531441994,-500.0,0.00043099,31]
[326873540,1715531442003,-359.0551876,0.00043099,31]
[326873541,1715531442012,-220.25940701,0.00043099,31]
[326873542,1715531442020,-500.0,0.00043099,31]
[326873543,1715531442029,-6286.05127808,0.00043103,120]
[326873544,1715531442040,-1989.03803184,0.00043103,120]
[326873545,1715531442051,-2116.49478037,0.00043103,120]
[326873688,1715531443689,-3190.83292873,0.00043103,120]
[326873859,1715531446608,-7633.34785936,0.00043103,120]
[326873861,1715531446620,-1152.81102501,0.00043103,120]
[326875180,1715531463118,154.7215013,0.0002,2]
[326875275,1715531465596,412.9630023,9.999e-05,2]
[326875276,1715531467112,284.68255756,0.00025204,2]
[326875277,1715531468653,186.68478569,9.999e-05,2]
[326875278,1715531468706,604.99701085,0.00020913,2]
[326875279,1715531469684,484.2157883,0.00026574,2]
[326875280,1715531470087,1093.74406473,0.00026574,2]
[326875281,1715531472314,154.7215013,9.999e-05,2]
[326875282,1715531472378,1494.73983919,9.999e-05,2]
[326875283,1715531472758,1624.95494282,0.00022738,2]
[326875284,1715531477656,33901.9652604,0.00020913,2]
[326875285,1715531477677,34055.23535956,0.00020913,2]
[326875286,1715531485623,527.88053844,0.00026574,2]
[326875287,1715531485648,584.66678309,0.00020913,2]
[326875288,1715531485831,1895.4873316,0.00020913,2]
[326875289,1715531490644,315.66838361,0.00026574,2]
[326875290,1715531491992,700.02981206,0.00026574,2]
[326875291,1715531492378,1520.60312054,9.999e-05,2]
[326875292,1715531492406,5434.40430803,9.999e-05,2]
[326875293,1715531493096,281.12635245,0.00022738,2]
[326875294,1715531494361,158.29939173,9.999e-05,2]
[326875295,1715531495227,719.2075659,9.999e-05,2]
[326875296,1715531500747,6652.33227078,0.00022738,2]
[326875297,1715531502760,364.39759139,0.00022738,2]
[326875298,1715531502790,154.7215013,9.999e-05,2]
[326875299,1715531508217,1579.70306251,0.00022738,2]
[326875300,1715531511226,154.7215013,9.999e-05,2]
[326875301,1715531511870,817.27495953,9.999e-05,2]
[326875302,1715531513417,59336.07404587,0.00020913,2]
[326875303,1715531514483,273.67256523,0.000165,2]
[326875304,1715531515273,1448.938979,0.0001,2]
[326875305,1715531524004,1337.31788699,9.999e-05,2]
[326875306,1715531524296,154.7215013,9.999e-05,2]
[326875307,1715531526675,154.7215013,9.999e-05,2]
[326875308,1715531527256,154.7215013,9.999e-05,2]
[326875309,1715531534238,5231.4585021,0.00022,2]
[326875310,1715531534471,154.7215013,9.999e-05,2]
[326875311,1715531541918,154.7215013,9.999e-05,2]
[326875312,1715531543818,206.96693214,9.999e-05,2]
[326875313,1715531548317,154.7215013,9.999e-05,2]
[326875314,1715531553148,194.23254452,0.00022738,2]
[326875315,1715531555905,1349.05891759,0.00022738,2]
[326875316,1715531562677,904.83466521,0.00022738,2]
[326875317,1715531586469,364.39759139,9.999e-05,2]
[326875322,1715531606569,364.39759139,9.999e-05,2]
[326875323,1715531611134,834.50840127,0.00022738,2]
[326875324,1715531620560,410.02105366,0.00022738,2]
[326875325,1715531622717,364.39759139,0.00022738,2]
[326875326,1715531623963,236.28343154,0.00022738,2]
[326875327,1715531820180,292.37560477,0.00020913,2]
[326875329,1715531837810,231.2460457,0.00022,2]
[326875330,1715531840000,3058.73651821,0.00022738,2]
[326875335,1715532076297,260.5,0.00020913,2]
[326875336,1715532090986,521.97915645,9.999e-05,2]
[326875338,1715532138254,527.88053844,0.00022738,2]
[326875339,1715532139795,719.2075659,0.00022738,2]
[326875340,1715532172376,484.2157883,0.00020913,2]
[326875341,1715532184199,412.9630023,0.00020913,2]
[326875342,1715532195892,154.7215013,0.00022738,2]
[326875343,1715532199831,194.23254452,0.00022738,2]
[326875344,1715532248854,154.7215013,0.00020913,2]
[326875345,1715532251622,410.02105366,0.00022738,2]
[326875347,1715532329869,522.46559365,0.00020913,2]
[326875348,1715532342179,-166.198614,0.00023562,2]
[326875349,1715532342201,-184.767499,0.00023562,2]
[326875350,1715532342222,-326.171814,0.00025163,2]
[326875351,1715532342242,-175.04921784,0.0002528,2]
[326875356,1715532365567,238.51524987,9.999e-05,2]
[326875357,1715532402757,20225.81205785,0.00020913,2]
[326875358,1715532495008,9463.30771988,0.00020913,2]
[326875359,1715532512927,189.71214175,0.00020913,2]
[326875360,1715532569151,-166.666667,0.00025127,2]
[326875361,1715532569173,-74.95078216,0.0002528,2]
[326875362,1715532569194,-352.03009815,0.0002528,2]
[326875363,1715532569214,-3000.0,0.00025285,2]
[326875364,1715532569233,-405.7809347,0.00025449,2]
[326875365,1715532569254,-1557.35603047,0.0002592,2]
[326875366,1715532569276,-1514.0561558,0.00026352,2]
[326875367,1715532569295,-10000.0,0.000267,2]
[326875368,1715532569316,-166.666667,0.00028553,2]
[326875369,1715532569335,-986.32325271,0.00029469,2]
[326875370,1715532569357,-23094.6048049,0.0002947,2]
[326875371,1715532569378,-687.55008125,0.000349,2]
[326875372,1715532569398,-210.52757553,0.00035,4]
[326875373,1715532569418,-493.99743928,0.00036985,2]
[326875374,1715532569439,-500.0,0.00036999,15]
[326875375,1715532569460,-500.0,0.00036999,15]
[326875376,1715532569481,-500.0,0.00036999,15]
[326875377,1715532569502,-500.0,0.00036999,15]
[326875378,1715532569523,-500.0,0.00036999,15]
[326875379,1715532569545,-500.0,0.00036999,15]
[326875380,1715532569565,-500.0,0.00036999,15]
[326875381,1715532569585,-500.0,0.00036999,15]
[326875382,1715532569606,-500.0,0.00036999,15]
[326875383,1715532569626,-500.0,0.00036999,15]
[326875384,1715532569647,-500.0,0.00036999,15]
[326875385,1715532569668,-500.0,0.00036999,15]
[326875386,1715532569688,-474.22163901,0.00036999,15]
[326875387,1715532569708,-500.0,0.00036999,15]
[326875388,1715532569729,-500.0,0.00036999,15]
[326875389,1715532569750,-500.0,0.00036999,15]
[326875390,1715532569770,-228.8091224,0.00036999,15]
[326875391,1715532569790,-500.0,0.00036999,15]
[326875392,1715532569811,-616.86307458,0.00036999,15]
[326875393,1715532569832,-500.0,0.00036999,15]
[326875394,1715532569855,-500.0,0.00036999,15]
[326875395,1715532569879,-500.0,0.00036999,15]
[326875396,1715532569899,-500.0,0.00036999,15]
[326875397,1715532569920,-500.0,0.00036999,15]
[326875398,1715532569941,-500.0,0.00036999,15]
[326875399,1715532569962,-500.0,0.00036999,15]
[326875400,1715532569983,-500.0,0.00036999,15]
[326875401,1715532570004,-500.0,0.00036999,15]
[326875402,1715532570027,-533.04504004,0.00036999,15]
[326875403,1715532570047,-1776.21579671,0.00037,2]
[326875404,1715532570067,-320.461948,0.00037743,4]
[326875405,1715532570088,-326.171814,0.00037744,2]
[326875406,1715532570113,-493.99743924,0.00038488,2]
[326875407,1715532581153,376.34041175,0.00025,2]
[326875408,1715532626831,412.9630023,0.00026574,2]
[326875437,1715532632698,-494.0,0.00039833,2]
[326875439,1715532632707,-493.99743924,0.00039991,2]
[326875441,1715532632716,-309.74071762,0.00041002,120]
[326875443,1715532632726,-931.12425166,0.00041003,2]
[326875445,1715532632735,-493.99743924,0.00041494,2]
[326875447,1715532632744,-18849.20373075,0.00042988,2]
[326875449,1715532632753,-154.84423191,0.00042996,4]
[326875451,1715532632761,-265.71367591,0.00042996,4]
[326875453,1715532632771,-493.99743924,0.00042997,2]
[326875455,1715532632780,-2461.58766494,0.00042998,4]
[326875457,1715532632789,-154.92693034,0.00042998,4]
[326875459,1715532632798,-573.19984953,0.00042998,4]
[326875461,1715532632808,-3053.42143457,0.00042998,4]
[326875463,1715532632817,-320.25112587,0.00042998,4]
[326875465,1715532632826,-1093.48376024,0.00042998,4]
[326875467,1715532632835,-154.72150438,0.00042998,4]
[326875469,1715532632844,-193.95953804,0.00042998,4]
[326875471,1715532632853,-341.66417528,0.00042998,4]
[326875473,1715532632862,-518.5,0.00042999,4]
[326875475,1715532632871,-26776.08377689,0.00043,21]
[326875477,1715532632880,-29356.20217987,0.00043,2]
[326875479,1715532632889,-151.0,0.00043,7]
[326875481,1715532632898,-151.0,0.00043,7]
[326875483,1715532632908,-151.0,0.00043,7]
[326875485,1715532632917,-229.64175776,0.00043094,2]
[326875487,1715532632926,-475.66686918,0.00043094,4]
[326875489,1715532632935,-527.23318896,0.00043094,4]
[326875491,1715532632944,-1682.0219825,0.00043094,4]
[326875493,1715532632953,-5696.03951953,0.00043094,2]
[326875495,1715532632962,-210.165803,0.00043094,7]
[326875497,1715532632972,-210.165803,0.00043094,7]
[326875499,1715532632981,-151.0,0.00043094,7]
[326875501,1715532632990,-1371.71550369,0.00043094,2]
[326875503,1715532632999,-718.54621689,0.00043095,4]
[326875505,1715532633008,-2695.20119717,0.00043096,4]
[326875507,1715532633017,-1648.2888726,0.00043096,4]
[326875509,1715532633026,-157.42116521,0.00043096,4]
[326875511,1715532633036,-314.73312707,0.00043096,4]
[326875513,1715532633045,-309.42756287,0.00043096,4]
[326875515,1715532633054,-1575.85560435,0.00043096,4]
[326875517,1715532633063,-816.21650523,0.00043096,2]
[326875519,1715532633072,-155.02305822,0.00043096,4]
[326875521,1715532633081,-367.3592041,0.00043096,4]
[326875523,1715532633090,-1481.72596487,0.00043096,14]
[326875525,1715532633100,-154.7833188,0.00043096,4]
[326875539,1715532633221,-309.42756595,0.00043096,4]
[326875541,1715532633230,-1335.95255578,0.00043096,4]
[326875543,1715532633240,-155.08663898,0.00043096,4]
[326875545,1715532633249,-5263.00177756,0.00043096,4]
[326875547,1715532633258,-206.61067807,0.00043096,4]
[326875549,1715532633267,-309.35034574,0.00043096,4]
[326875551,1715532633278,-903.43298694,0.00043096,4]
[326875553,1715532633289,-833.00260517,0.00043096,4]
[326875555,1715532633298,-236.58229495,0.00043096,4]
[326875557,1715532633307,-151.0,0.00043096,7]
[326875559,1715532633316,-151.0,0.00043096,7]
[326875561,1715532633325,-151.0,0.00043096,7]
[326875563,1715532633334,-151.0,0.00043096,7]
[326875565,1715532633343,-151.0,0.00043096,7]
[326875567,1715532633353,-954.228196,0.00043096,7]
[326875569,1715532633362,-151.0,0.00043096,7]
[326875571,1715532633371,-954.228196,0.00043096,7]
[326875573,1715532633380,-975.54957356,0.00043097,4]
[326875575,1715532633389,-913.21399826,0.00043097,4]
[326875581,1715532633462,-316.23475701,0.00043097,4]
[326875582,1715532633473,-2554.4,0.00043097,4]
[326875583,1715532633484,-2491.93096315,0.00043097,4]
[326875584,1715532633493,-154.75239308,0.00043098,4]
[326875585,1715532633502,-2679.77165515,0.00043098,4]
[326875586,1715532633513,-777.00984059,0.00043098,4]
[326875587,1715532633522,-155.13625259,0.00043098,4]
[326875588,1715532633530,-304.32953868,0.00043098,2]
[326875589,1715532633539,-160.24707788,0.00043098,4]
[326875590,1715532633548,-549.90202406,0.00043098,4]
[326875591,1715532633557,-309.39667109,0.00043098,4]
[326875592,1715532633566,-154.81268098,0.00043098,4]
[326875593,1715532633574,-154.73694103,0.00043098,4]
[326875594,1715532633583,-269.69442722,0.00043098,4]
[326875595,1715532633592,-154.73694719,0.00043098,4]
[326875596,1715532633600,-309.38122828,0.00043098,4]
[326875597,1715532633609,-154.84010936,0.00043098,4]
[326875598,1715532633618,-816.36645529,0.00043098,4]
[326875599,1715532633627,-154.7215013,0.00043098,4]
[326875600,1715532633636,-200.11543839,0.00043098,4]
[326875601,1715532633645,-2152.4498189,0.00043098,4]
[326875602,1715532633655,-155.19734813,0.00043098,4]
[326875603,1715532633663,-154.79874928,0.00043098,4]
[326875604,1715532633672,-186.56664399,0.00043098,4]
[326875605,1715532633681,-267.07392403,0.00043098,4]
[326875606,1715532633690,-307.10576172,0.00043098,4]
[326875607,1715532633699,-156.5360369,0.00043098,2]
[326875609,1715532633708,-154.8710788,0.00043098,4]
[326875611,1715532633717,-258.45309367,0.00043098,2]
[326875613,1715532633726,-1091.88144807,0.00043098,4]
[326875615,1715532633735,-160.60688856,0.00043098,4]
[326875617,1715532633744,-349.93188089,0.00043098,4]
[326875618,1715532633754,-27234.42497977,0.00043098,4]
[326875715,1715532638711,-191.70651026,0.00042999,31]
[326875717,1715532638720,-395.89013206,0.00042999,31]
[326875719,1715532638730,-496.20680028,0.00042999,31]
[326875721,1715532638739,-6372.66400484,0.00043098,4]
[326875723,1715532638748,-1621.06945595,0.00043098,4]
[326875724,1715532638757,-583.42484553,0.00043098,4]
[326875726,1715532638766,-2630.07945824,0.00043098,4]
[326875728,1715532638774,-151.0,0.00043098,7]
[326875730,1715532638784,-151.0,0.00043098,7]
[326875732,1715532638793,-151.0,0.00043098,7]
[326875734,1715532638801,-151.0,0.00043098,7]
[326875736,1715532638810,-194.37768,0.00043098,7]
[326875738,1715532638819,-228.06241,0.00043098,7]
[326875740,1715532638828,-151.0,0.00043098,7]
[326875742,1715532638837,-151.0,0.00043098,7]
[326875743,1715532638846,-235.67321,0.00043098,7]
[326875745,1715532638854,-151.0,0.00043098,7]
[326875747,1715532638863,-151.0,0.00043098,7]
[326875749,1715532638873,-210.165803,0.00043098,7]
[326875751,1715532638882,-210.165803,0.00043098,7]
[326875753,1715532638891,-210.165803,0.00043098,7]
[326875755,1715532638899,-210.165803,0.00043098,7]
[326875757,1715532638909,-151.0,0.00043098,7]
[326875759,1715532638918,-208.82264,0.00043098,7]
[326875761,1715532638927,-151.0,0.00043098,7]
[326875763,1715532638936,-252.528778,0.00043098,7]
[326875765,1715532638944,-151.0,0.00043098,7]
[326875767,1715532638953,-151.0,0.00043098,7]
[326875769,1715532638962,-151.0,0.00043098,7]
[326875770,1715532638971,-151.0,0.00043098,7]
[326875772,1715532638979,-183.554929,0.00043098,7]
[326875774,1715532638988,-954.228196,0.00043098,7]
[326875776,1715532638997,-954.228196,0.00043098,7]
[326875778,1715532639005,-954.228196,0.00043098,7]
[326875780,1715532639014,-954.228196,0.00043098,7]
[326875782,1715532639023,-151.0,0.00043098,7]
[326875784,1715532639032,-151.0,0.00043098,7]
[326875786,1715532639042,-20282.97,0.00043109,3]
[326875787,1715532639051,-151.0,0.00043118,7]
[326875789,1715532639061,-151.0,0.00043118,7]
[326875791,1715532639070,-151.0,0.00043118,7]
[326875793,1715532639079,-151.0,0.00043118,7]
[326875795,1715532639088,-2053.13267815,0.00043118,21]
[326876013,1715532644061,-192.08990249,0.00042999,31]
[326876015,1715532644071,-163.80240434,0.00042999,31]
[326876016,1715532644081,-448.11611556,0.00042999,31]
[326876018,1715532644090,-290.76256384,0.00042999,31]
[326876020,1715532644099,-252.71063366,0.00042999,31]
[326877863,1715532666271,11941.432199,0.00033893,2]
[326878283,1715532700539,465.56886578,9.999e-05,2]
[326878286,1715532715043,169.840837,0.0003507,2]
[326878287,1715532722756,7886.43652278,0.00020913,2]
[326878298,1715532751651,154.7215013,9.999e-05,2]
[326878300,1715532939017,154.7215013,9.999e-05,2]
[326878301,1715532945073,225.0,0.00021918,2]
[326878302,1715533063298,191.24737374,0.00021918,2]
[326878303,1715533064794,159.90890812,0.00021918,2]
[326878304,1715533098861,209.44009588,0.00021918,2]
[326878305,1715533123966,5300.36224376,0.00021918,2]
[326878307,1715533271381,584.66678309,0.00022738,2]
[326878308,1715533310714,330.6132766,9.999e-05,2]
[326878309,1715533322363,412.9630023,0.00022738,2]
[326878310,1715533338707,238.51524987,0.00022738,2]
[326878311,1715533400627,465.56886578,0.00022738,2]
[326878312,1715533444914,834.50840127,0.00020913,2]
[326878313,1715533516297,154.7215013,0.00020913,2]
[326878314,1715533556164,-157.968572,0.00023562,2]
[326878315,1715533556184,-169.840837,0.00024547,2]
[326878316,1715533556205,-724.79079547,0.00024549,2]
[326878317,1715533639170,154.7215013,9.999e-05,2]
[326878318,1715533641100,-7105.19796413,0.00024549,2]
[326878319,1715533641121,-693.5536438,0.00024896,2]
[326878320,1715533747113,-24196.4463562,0.00024896,2]
[326878321,1715533747134,-380.0,0.00025021,2]
[326878322,1715533747154,-3727.13060983,0.00026571,2]
[326878323,1715533747175,-157.968572,0.00030651,2]
[326878324,1715533747195,-444.20209907,0.0003125,4]
[326878325,1715533747215,-554.84472478,0.00031251,4]
[326878326,1715533747235,-620.74950111,0.00031793,2]
[326878327,1715533747255,-320.461948,0.0003227,4]
[326878328,1715533747276,-158.9937632,0.00033351,2]
[326878329,1715533747297,-500.0,0.00033449,7]
[326878330,1715533747319,-500.0,0.00033449,7]
[326878331,1715533747340,-500.0,0.00033449,7]
[326878332,1715533747361,-500.0,0.00033449,7]
[326878333,1715533747384,-311.51892276,0.00033449,7]
[326878334,1715533747407,-500.0,0.00033449,7]
[326878335,1715533747429,-500.0,0.00033449,7]
[326878336,1715533747451,-500.0,0.00033449,7]
[326878337,1715533747472,-500.0,0.00033449,7]
[326878338,1715533747493,-500.0,0.00033449,7]
[326878339,1715533747516,-500.0,0.00033449,7]
[326878340,1715533747538,-500.0,0.00033449,7]
[326878341,1715533747559,-500.0,0.00033449,7]
[326878342,1715533747580,-500.0,0.00033449,7]
[326878343,1715533747602,-500.0,0.00033449,7]
[326878344,1715533747624,-500.0,0.00033449,7]
[326878345,1715533747650,-500.0,0.00033449,7]
[326878346,1715533747672,-500.0,0.00033449,7]
[326878347,1715533747697,-500.0,0.00033449,7]
[326878348,1715533747719,-500.0,0.00033449,7]
[326878349,1715533747741,-500.0,0.00033449,7]
[326878350,1715533747762,-500.0,0.00033449,7]
[326878351,1715533747783,-500.0,0.00033449,7]
[326878352,1715533747805,-500.0,0.00033449,7]
[326878353,1715533747827,-500.0,0.00033449,7]
[326878354,1715533747849,-500.0,0.00033449,7]
[326878355,1715533747871,-500.0,0.00033449,7]
[326878356,1715533747894,-550.0,0.00033449,7]
[326878357,1715533747915,-500.0,0.00033449,7]
[326878358,1715533747950,-36918.193299,0.00033454,2]
[326878359,1715533747972,-6933.01849963,0.00033554,2]
[326878360,1715533747994,-169.66719945,0.00033999,7]
[326878361,1715533748015,-2303.34266847,0.00034,5]
[326878362,1715533748042,-8386.04226298,0.00034,5]
[326878363,1715533748062,-210.48268909,0.00035,4]
[326878364,1715533748084,-170.090767,0.00035616,120]
[326878365,1715533748104,-158.99376316,0.00035768,2]